[Event "EYCC Girls-U12 2019"]
[Site "Bratislava"]
[Date "2019.08.09"]
[Round "8.2"]
[White "Shvedova, Alexandra"]
[Black "Manko, Mariya"]
[Result "1-0"]
[ECO "B01"]
[WhiteElo "1932"]
[BlackElo "1807"]
[Annotator "NA"]
[PlyCount "101"]
[EventDate "2019.08.02"]
[EventType "swiss"]
[EventCountry "SVK"]
[SourceTitle "playchess.com"]
[Source "ChessBase"]
[SourceQuality "1"]
[TimeControl "40/5400+30:1800+30"]

1. e4 {[%emt 0:00:00]} d5 {[%emt 0:00:00]} 2. exd5 {[%emt 0:00:00]} Qxd5 {[%emt 0:00:00]} 3. Nf3 {[%emt 0:00:00]} Bg4 {[%emt 0:00:56]} 4. Be2 {[%emt 0:00:00]} c6 {[%emt 0:01:10]} 5. c4 {[%emt 0:00:41]} Qd8 {[%emt 0:00:47]} 6. d4 {[%emt 0:00:09]} Nf6 {[%emt 0:01:07]} 7. Nc3 {[%emt 0:00:05]} e6 {[%emt 0:00:52]} 8. O-O {[%emt 0:00:47]} Be7 {[%emt 0:01:29]} 9. Qb3 {[%emt 0:06:02]} Qc7 {[%emt 0:04:13]} 10. Bg5 {[%emt 0:09:39]} O-O {[%emt 0:05:47]} 11. Rac1 {[%emt 0:10:40]} Nbd7 {[%emt 0:02:53]} 12. Rfd1 {[%emt 0:01:47]} Rad8 {[%emt 0:05:44]} 13. Bh4 {[%emt 0:12:58]} Qb6 {[%emt 0:09:13]} 14. h3 {[%emt 0:10:58]} Qxb3 {[%emt 0:14:43]} 15. axb3 {[%emt 0:00:05]} Bxf3 {[%emt 0:09:55]} 16. Bxf3 {[%emt 0:00:09]} c5 {[%emt 0:04:04]} 17. Bxf6 {[%emt 0:13:34]} Bxf6 {[%emt 0:02:28]} 18. d5 {[%emt 0:01:04]} Ne5 {[%emt 0:11:36]} 19. Be2 {[%emt 0:02:37]} exd5 {[%emt 0:08:05]} 20. cxd5 {[%emt 0:07:46]} Nd7 {[%emt 0:07:02]} 21. Ra1 {[%emt 0:03:35]} a6 {[%emt 0:00:51]} 22. Rd2 {[%emt 0:04:08]} Rfe8 {[%emt 0:02:24]} 23. g3 {[%emt 0:02:08]} g6 {[%emt 0:02:47]} 24. Bf3 {[%emt 0:00:49]} Ne5 {[%emt 0:01:43]} 25. Bg2 {[%emt 0:00:17]} c4 {[%emt 0:01:46]} 26. Ne4 {[%emt 0:07:27]} Bg7 {[%emt 0:00:44]} 27. f4 {[%emt 0:01:01]} Nd3 {[%emt 0:00:23]} 28. bxc4 {[%emt 0:00:20]} Nxb2 {[%emt 0:00:29]} 29. Rc1 {[%emt 0:00:25]} a5 {[%emt 0:00:42]} 30. Rcc2 {[%emt 0:01:08]} Re7 {[%emt 0:00:33]} 31. Rxb2 {[%emt 0:00:18]} Bxb2 {[%emt 0:00:07]} 32. Rxb2 {[%emt 0:00:02]} Rc7 {[%emt 0:00:39]} 33. Bf1 {[%emt 0:01:36]} a4 {[%emt 0:00:44]} 34. c5 {[%emt 0:01:34]} a3 {[%emt 0:00:32]} 35. Ra2 {[%emt 0:00:42]} Ra8 {[%emt 0:00:18]} 36. d6 {[%emt 0:00:22]} Rcc8 {[%emt 0:00:07]} 37. Bc4 {[%emt 0:01:26]} Kg7 {[%emt 0:00:50]} 38. Bd5 {[%emt 0:00:19]} Ra7 {[%emt 0:00:39]} 39. Kf2 {[%emt 0:00:38]} h6 {[%emt 0:00:18]} 40. Rc2 {[%emt 0:00:00]} Ra5 {[%emt 0:00:00]} 41. Ba2 {[%emt 0:07:16]} f5 {[%emt 0:08:16]} 42. Nd2 {[%emt 0:00:11]} Kf6 {[%emt 0:01:06]} 43. Nb3 {[%emt 0:00:52]} Raa8 {[%emt 0:01:42]} 44. Nd4 {[%emt 0:01:26]} Re8 {[%emt 0:01:46]} 45. Nb5 {[%emt 0:01:42]} Ra5 {[%emt 0:02:12]} 46. Nc7 {[%emt 0:00:26]} Rd8 {[%emt 0:01:14]} 47. Re2 {[%emt 0:03:54]} Rxc5 {[%emt 0:15:59]} 48. Ne6 {[%emt 0:01:54]} Rcc8 {[%emt 0:00:23]} 49. Nxd8 {[%emt 0:00:05]} Rxd8 {[%emt 0:00:05]} 50. Re6+ {[%emt 0:00:03]} Kg7 {[%emt 0:00:06]} 51. Ke3 {[%emt 0:00:05]} 1-0

[Event "EYCC Girls-U12 2019"]
[Site "Bratislava"]
[Date "2019.08.09"]
[Round "8.3"]
[White "Musabayeva, Diana"]
[Black "Huang, Wendy"]
[Result "1/2-1/2"]
[ECO "B90"]
[WhiteElo "1679"]
[BlackElo "1784"]
[Annotator "NA"]
[PlyCount "65"]
[EventDate "2019.08.02"]
[EventType "swiss"]
[EventCountry "SVK"]
[SourceTitle "playchess.com"]
[Source "ChessBase"]
[SourceQuality "1"]
[TimeControl "40/5400+30:1800+30"]

1. e4 {[%emt 0:00:00]} c5 {[%emt 0:00:00]} 2. Nf3 {[%emt 0:00:00]} d6 {[%emt 0:00:00]} 3. d4 {[%emt 0:00:00]} cxd4 {[%emt 0:00:00]} 4. Nxd4 {[%emt 0:00:03]} Nf6 {[%emt 0:00:00]} 5. Nc3 {[%emt 0:00:07]} a6 {[%emt 0:00:02]} 6. f3 {[%emt 0:01:10]} e5 {[%emt 0:00:06]} 7. Nb3 {[%emt 0:00:09]} Be6 {[%emt 0:00:16]} 8. Be3 {[%emt 0:01:10]} Be7 {[%emt 0:00:25]} 9. Qd2 {[%emt 0:00:33]} Nbd7 {[%emt 0:00:28]} 10. O-O-O {[%emt 0:00:49]} O-O {[%emt 0:00:07]} 11. g4 {[%emt 0:00:53]} b5 {[%emt 0:00:55]} 12. g5 {[%emt 0:00:34]} Nh5 {[%emt 0:04:21]} 13. Rg1 {[%emt 0:30:44]} b4 {[%emt 0:06:04]} 14. Ne2 {[%emt 0:21:18]} a5 {[%emt 0:09:25]} 15. Kb1 {[%emt 0:02:56]} a4 {[%emt 0:31:04]} 16. Nbc1 {[%emt 0:02:45]} Qa5 {[%emt 0:10:47]} 17. Ng3 {[%emt 0:08:05]} Nxg3 {[%emt 0:05:14]} 18. hxg3 {[%emt 0:03:13]} Rfc8 {[%emt 0:01:52]} 19. f4 {[%emt 0:01:41]} f5 {[%emt 0:06:06]} 20. Bd3 {[%emt 0:04:23]} exf4 {[%emt 0:02:06]} 21. gxf4 {[%emt 0:00:58]} Nf8 {[%emt 0:04:52]} 22. exf5 {[%emt 0:08:14]} Bxf5 {[%emt 0:00:43]} 23. Bxf5 {[%emt 0:00:24]} Qxf5 {[%emt 0:00:06]} 24. Qd5+ {[%emt 0:00:37]} Qxd5 {[%emt 0:04:01]} 25. Rxd5 {[%emt 0:00:03]} Ne6 {[%emt 0:02:43]} 26. f5 {[%emt 0:03:41]} Nc7 {[%emt 0:03:06]} 27. Rd4 {[%emt 0:02:28]} d5 {[%emt 0:02:05]} 28. Nd3 {[%emt 0:01:42]} Rab8 {[%emt 0:01:36]} 29. Bf4 {[%emt 0:01:37]} Rb5 {[%emt 0:01:37]} 30. Re1 {[%emt 0:01:36]} Kf8 {[%emt 0:01:25]} 31. Bxc7 {[%emt 0:02:25]} Rxc7 {[%emt 0:00:05]} 32. Nf4 {[%emt 0:00:07]} Rc4 {[%emt 0:01:36]} 33. Ne6+ {[%emt 0:01:03]} 1/2-1/2

[Event "EYCC Girls-U12 2019"]
[Site "Bratislava"]
[Date "2019.08.09"]
[Round "8.4"]
[White "Verheij, Dana"]
[Black "Ivanova, Dilyana"]
[Result "1-0"]
[ECO "B80"]
[WhiteElo "1497"]
[BlackElo "1734"]
[Annotator "NA"]
[PlyCount "117"]
[EventDate "2019.08.02"]
[EventType "swiss"]
[EventCountry "SVK"]
[SourceTitle "playchess.com"]
[Source "ChessBase"]
[SourceQuality "1"]
[TimeControl "40/5400+30:1800+30"]

1. e4 {[%emt 0:00:00]} c5 {[%emt 0:00:00]} 2. Nf3 {[%emt 0:00:00]} e6 {[%emt 0:00:00]} 3. d4 {[%emt 0:00:17]} cxd4 {[%emt 0:00:00]} 4. Nxd4 {[%emt 0:00:07]} Nf6 {[%emt 0:00:00]} 5. Nc3 {[%emt 0:00:09]} d6 {[%emt 0:00:00]} 6. h3 {[%emt 0:00:13]} a6 {[%emt 0:01:14]} 7. g4 {[%emt 0:00:13]} h6 {[%emt 0:01:07]} 8. Bg2 {[%emt 0:00:26]} Qc7 {[%emt 0:06:02]} 9. O-O {[%emt 0:01:03]} Nc6 {[%emt 0:02:12]} 10. Be3 {[%emt 0:01:10]} Bd7 {[%emt 0:05:53]} 11. f4 {[%emt 0:01:23]} O-O-O {[%emt 0:08:45]} 12. Rb1 {[%emt 0:06:09]} e5 {[%emt 0:07:29]} 13. Nde2 {[%emt 0:00:45]} Na5 {[%emt 0:13:05]} 14. Qe1 {[%emt 0:04:28]} Nc4 {[%emt 0:01:58]} 15. Bf2 {[%emt 0:00:55]} Bc6 {[%emt 0:14:02]} 16. Nd5 {[%emt 0:02:31]} Bxd5 {[%emt 0:04:35]} 17. exd5 {[%emt 0:00:22]} Re8 {[%emt 0:10:17]} 18. b3 {[%emt 0:04:50]} Nb6 {[%emt 0:04:51]} 19. Qd2 {[%emt 0:04:18]} exf4 {[%emt 0:06:04]} 20. Nxf4 {[%emt 0:00:26]} g5 {[%emt 0:02:23]} 21. Qd4 {[%emt 0:04:55]} Nbd7 {[%emt 0:01:30]} 22. Nh5 {[%emt 0:00:59]} Qd8 {[%emt 0:05:32]} 23. Nxf6 {[%emt 0:06:23]} Nxf6 {[%emt 0:02:02]} 24. Qc3+ {[%emt 0:00:18]} Kb8 {[%emt 0:00:10]} 25. Bd4 {[%emt 0:00:21]} Bg7 {[%emt 0:01:58]} 26. Bxf6 {[%emt 0:00:17]} Qb6+ {[%emt 0:00:30]} 27. Kh1 {[%emt 0:00:33]} Re3 {[%emt 0:00:41]} 28. Qd2 {[%emt 0:01:21]} Bxf6 {[%emt 0:00:33]} 29. Rxf6 {[%emt 0:00:16]} Rhe8 {[%emt 0:00:13]} 30. Qf2 {[%emt 0:04:07]} Qb4 {[%emt 0:00:58]} 31. Rf1 {[%emt 0:01:56]} Re2 {[%emt 0:00:14]} 32. Qg3 {[%emt 0:00:23]} Qd2 {[%emt 0:00:49]} 33. Qxd6+ {[%emt 0:01:07]} Ka8 {[%emt 0:00:18]} 34. Qg3 {[%emt 0:01:05]} R8e3 {[%emt 0:00:50]} 35. R6f3 {[%emt 0:01:44]} Rxf3 {[%emt 0:00:32]} 36. Bxf3 {[%emt 0:01:01]} Re3 {[%emt 0:00:18]} 37. Qf2 {[%emt 0:01:21]} Qc3 {[%emt 0:00:28]} 38. d6 {[%emt 0:00:13]} Re8 {[%emt 0:00:48]} 39. d7 {[%emt 0:00:30]} Rd8 {[%emt 0:00:06]} 40. Re1 {[%emt 0:00:00]} Qc7 {[%emt 0:00:00]} 41. Re8 {[%emt 0:03:05]} Qxd7 {[%emt 0:00:39]} 42. Rxd8+ {[%emt 0:00:08]} Qxd8 {[%emt 0:00:04]} 43. c4 {[%emt 0:00:42]} Qd6 {[%emt 0:01:38]} 44. Bd5 {[%emt 0:00:35]} f6 {[%emt 0:01:14]} 45. Qf5 {[%emt 0:00:23]} Qe7 {[%emt 0:00:20]} 46. Qe6 {[%emt 0:01:05]} Qb4 {[%emt 0:01:14]} 47. Qxa6+ {[%emt 0:01:07]} Kb8 {[%emt 0:00:06]} 48. Qxb7+ {[%emt 0:00:56]} Qxb7 {[%emt 0:00:06]} 49. Bxb7 {[%emt 0:00:05]} Kxb7 {[%emt 0:00:03]} 50. Kg2 {[%emt 0:00:14]} Kc6 {[%emt 0:00:10]} 51. Kf3 {[%emt 0:00:07]} Kd6 {[%emt 0:00:13]} 52. Ke4 {[%emt 0:00:13]} Kc6 {[%emt 0:00:23]} 53. b4 {[%emt 0:00:21]} Kd6 {[%emt 0:00:07]} 54. a4 {[%emt 0:00:18]} Kc6 {[%emt 0:00:05]} 55. a5 {[%emt 0:00:24]} Kb7 {[%emt 0:00:19]} 56. b5 {[%emt 0:00:09]} Ka7 {[%emt 0:00:12]} 57. c5 {[%emt 0:00:20]} Kb7 {[%emt 0:00:06]} 58. a6+ {[%emt 0:00:19]} Ka7 {[%emt 0:00:09]} 59. Kf5 {[%emt 0:00:28]} 1-0

[Event "EYCC Girls-U12 2019"]
[Site "Bratislava"]
[Date "2019.08.09"]
[Round "8.5"]
[White "Karmanova, Olga Dm."]
[Black "Denic, Hana"]
[Result "0-1"]
[ECO "A05"]
[WhiteElo "1838"]
[BlackElo "1821"]
[Annotator "NA"]
[PlyCount "60"]
[EventDate "2019.08.02"]
[EventType "swiss"]
[EventCountry "SVK"]
[SourceTitle "playchess.com"]
[Source "ChessBase"]
[SourceQuality "1"]
[TimeControl "40/5400+30:1800+30"]

1. Nf3 {[%emt 0:00:00]} Nf6 {[%emt 0:00:00]} 2. g3 {[%emt 0:00:00]} e6 {[%emt 0:00:26]} 3. Bg2 {[%emt 0:00:00]} Be7 {[%emt 0:00:58]} 4. O-O {[%emt 0:00:24]} O-O {[%emt 0:01:22]} 5. d3 {[%emt 0:00:05]} d6 {[%emt 0:01:24]} 6. e4 {[%emt 0:00:50]} e5 {[%emt 0:04:22]} 7. h3 {[%emt 0:02:35]} Be6 {[%emt 0:01:52]} 8. Be3 {[%emt 0:06:04]} c6 {[%emt 0:05:01]} 9. c3 {[%emt 0:06:48]} Qc7 {[%emt 0:06:41]} 10. Ng5 {[%emt 0:04:01]} h6 {[%emt 0:19:52]} 11. Nxe6 {[%emt 0:00:34]} fxe6 {[%emt 0:00:08]} 12. Qb3 {[%emt 0:02:44]} d5 {[%emt 0:01:50]} 13. Nd2 {[%emt 0:16:01]} Nbd7 {[%emt 0:06:21]} 14. d4 {[%emt 0:05:49]} Kh8 {[%emt 0:07:40]} 15. dxe5 {[%emt 0:06:24]} Nxe5 {[%emt 0:00:57]} 16. f4 {[%emt 0:02:22]} Ng6 {[%emt 0:08:05]} 17. e5 {[%emt 0:00:47]} Nh5 {[%emt 0:06:29]} 18. Qc2 {[%emt 0:04:10]} Nxe5 {[%emt 0:02:43]} 19. fxe5 {[%emt 0:06:04]} Qxe5 {[%emt 0:01:51]} 20. Bd4 {[%emt 0:09:51]} Qxg3 {[%emt 0:02:25]} 21. Rxf8+ {[%emt 0:03:48]} Rxf8 {[%emt 0:00:14]} 22. Nf1 {[%emt 0:01:54]} Qg5 {[%emt 0:02:44]} 23. Be3 {[%emt 0:08:28]} Nf4 {[%emt 0:15:40]} 24. Bxf4 {[%emt 0:00:35]} Rxf4 {[%emt 0:00:20]} 25. Re1 {[%emt 0:02:48]} Bc5+ {[%emt 0:00:29]} 26. Ne3 {[%emt 0:01:49]} Rf3 {[%emt 0:00:31]} 27. Kh1 {[%emt 0:01:48]} Rxe3 {[%emt 0:00:41]} 28. Rf1 {[%emt 0:00:09]} Qg3 {[%emt 0:00:48]} 29. Rg1 {[%emt 0:01:35]} Re1 {[%emt 0:01:01]} 30. Rxe1 {[%emt 0:01:49]} Qxe1+ {[%emt 0:00:07]} 0-1

[Event "EYCC Girls-U12 2019"]
[Site "Bratislava"]
[Date "2019.08.09"]
[Round "8.6"]
[White "Vlasova, Olesia"]
[Black "Suarez Gomez, Paula"]
[Result "1-0"]
[ECO "A06"]
[WhiteElo "1799"]
[BlackElo "1438"]
[Annotator "NA"]
[PlyCount "71"]
[EventDate "2019.08.02"]
[EventType "swiss"]
[EventCountry "SVK"]
[SourceTitle "playchess.com"]
[Source "ChessBase"]
[SourceQuality "1"]
[TimeControl "40/5400+30:1800+30"]

1. Nf3 {[%emt 0:00:00]} d5 {[%emt 0:00:00]} 2. g3 {[%emt 0:00:00]} Nf6 {[%emt 0:00:00]} 3. Bg2 {[%emt 0:00:00]} Bf5 {[%emt 0:00:27]} 4. c4 {[%emt 0:00:06]} c6 {[%emt 0:00:29]} 5. cxd5 {[%emt 0:00:10]} cxd5 {[%emt 0:00:18]} 6. Qb3 {[%emt 0:00:05]} Qb6 {[%emt 0:01:05]} 7. Qxb6 {[%emt 0:00:11]} axb6 {[%emt 0:00:08]} 8. Nc3 {[%emt 0:00:26]} Nc6 {[%emt 0:16:26]} 9. O-O {[%emt 0:02:24]} h6 {[%emt 0:02:20]} 10. d3 {[%emt 0:00:55]} e6 {[%emt 0:01:39]} 11. Bf4 {[%emt 0:02:16]} Be7 {[%emt 0:04:07]} 12. a3 {[%emt 0:16:28]} O-O {[%emt 0:05:13]} 13. Rac1 {[%emt 0:08:52]} Nh5 {[%emt 0:15:35]} 14. Bd2 {[%emt 0:02:55]} Rfc8 {[%emt 0:04:53]} 15. Nb5 {[%emt 0:01:31]} Bh7 {[%emt 0:03:53]} 16. Rc2 {[%emt 0:04:41]} Na5 {[%emt 0:07:46]} 17. Rfc1 {[%emt 0:01:03]} Rxc2 {[%emt 0:01:54]} 18. Rxc2 {[%emt 0:00:01]} Nc6 {[%emt 0:00:08]} 19. Nfd4 {[%emt 0:07:22]} Nxd4 {[%emt 0:04:40]} 20. Nxd4 {[%emt 0:00:12]} Bd8 {[%emt 0:06:03]} 21. Nb5 {[%emt 0:01:23]} g5 {[%emt 0:02:54]} 22. Be3 {[%emt 0:03:53]} Nf6 {[%emt 0:05:14]} 23. Nd6 {[%emt 0:04:30]} Ng4 {[%emt 0:07:28]} 24. Bd4 {[%emt 0:05:32]} e5 {[%emt 0:04:26]} 25. h3 exd4 {[%emt 0:03:16]} 26. hxg4 {[%emt 0:01:04]} Bf6 {[%emt 0:00:30]} 27. Bxd5 {[%emt 0:02:01]} Rd8 {[%emt 0:00:45]} 28. Rc8 {[%emt 0:00:11]} Bg6 {[%emt 0:00:49]} 29. Bxb7 {[%emt 0:01:15]} Kf8 {[%emt 0:00:50]} 30. Nc4 {[%emt 0:02:43]} Rxc8 {[%emt 0:00:28]} 31. Bxc8 {[%emt 0:00:02]} Bd8 {[%emt 0:00:08]} 32. Kg2 {[%emt 0:05:19]} Bc7 {[%emt 0:00:47]} 33. Bf5 {[%emt 0:03:21]} Bxf5 {[%emt 0:00:53]} 34. gxf5 {[%emt 0:00:01]} h5 {[%emt 0:00:07]} 35. Kf3 {[%emt 0:01:22]} Ke7 {[%emt 0:00:58]} 36. a4 {[%emt 0:02:14]} 1-0

[Event "EYCC Girls-U12 2019"]
[Site "Bratislava"]
[Date "2019.08.09"]
[Round "8.7"]
[White "Zhou, Lepu Coco"]
[Black "Buyuk, Ecrin Efsa"]
[Result "0-1"]
[ECO "B10"]
[WhiteElo "1861"]
[BlackElo "1592"]
[Annotator "NA"]
[PlyCount "108"]
[EventDate "2019.08.02"]
[EventType "swiss"]
[EventCountry "SVK"]
[SourceTitle "playchess.com"]
[Source "ChessBase"]
[SourceQuality "1"]
[TimeControl "40/5400+30:1800+30"]

1. e4 {[%emt 0:00:00]} c6 {[%emt 0:00:00]} 2. Nc3 {[%emt 0:00:00]} d5 {[%emt 0:00:00]} 3. Nf3 {[%emt 0:00:00]} Nf6 {[%emt 0:00:05]} 4. e5 {[%emt 0:00:38]} Ne4 {[%emt 0:00:06]} 5. d4 {[%emt 0:01:15]} Nxc3 {[%emt 0:00:16]} 6. bxc3 {[%emt 0:00:09]} e6 {[%emt 0:00:05]} 7. Bd3 {[%emt 0:01:18]} c5 {[%emt 0:00:28]} 8. O-O {[%emt 0:01:09]} c4 {[%emt 0:00:06]} 9. Be2 {[%emt 0:00:11]} Be7 {[%emt 0:00:07]} 10. Be3 {[%emt 0:02:25]} Nd7 {[%emt 0:00:38]} 11. Ne1 {[%emt 0:02:44]} Nb6 {[%emt 0:09:50]} 12. f4 {[%emt 0:04:49]} O-O {[%emt 0:11:08]} 13. Nf3 {[%emt 0:03:41]} Na4 {[%emt 0:01:48]} 14. Qe1 {[%emt 0:01:44]} Ba3 {[%emt 0:04:29]} 15. f5 {[%emt 0:10:32]} exf5 {[%emt 0:16:19]} 16. Qg3 {[%emt 0:10:20]} Nxc3 {[%emt 0:02:48]} 17. Rae1 {[%emt 0:06:26]} Ne4 {[%emt 0:01:52]} 18. Qf4 {[%emt 0:00:30]} Be7 {[%emt 0:01:01]} 19. h4 {[%emt 0:01:32]} h6 {[%emt 0:08:17]} 20. Qh2 {[%emt 0:04:24]} b5 {[%emt 0:04:27]} 21. g3 {[%emt 0:02:45]} a5 {[%emt 0:00:33]} 22. Nd2 {[%emt 0:00:54]} Nxd2 {[%emt 0:13:34]} 23. Bxd2 {[%emt 0:00:07]} Be6 {[%emt 0:00:31]} 24. Bd1 {[%emt 0:03:20]} Ra6 {[%emt 0:08:22]} 25. c3 {[%emt 0:01:25]} Qd7 {[%emt 0:03:39]} 26. Bc2 {[%emt 0:01:54]} b4 {[%emt 0:00:47]} 27. Qf2 {[%emt 0:00:46]} Rb8 {[%emt 0:00:51]} 28. Rb1 {[%emt 0:01:47]} Rab6 {[%emt 0:00:32]} 29. Bxf5 {[%emt 0:02:07]} Bxf5 {[%emt 0:00:04]} 30. Qxf5 {[%emt 0:00:05]} Qxf5 {[%emt 0:00:03]} 31. Rxf5 {[%emt 0:00:15]} b3 {[%emt 0:00:52]} 32. axb3 {[%emt 0:00:31]} Rxb3 {[%emt 0:00:57]} 33. Rbf1 {[%emt 0:00:46]} Rb1 {[%emt 0:02:14]} 34. Rxf7 {[%emt 0:00:33]} Rxf1+ {[%emt 0:00:03]} 35. Rxf1 {[%emt 0:00:10]} a4 {[%emt 0:00:01]} 36. Ra1 {[%emt 0:02:30]} a3 {[%emt 0:00:05]} 37. Kf2 {[%emt 0:01:18]} Kf7 {[%emt 0:01:16]} 38. Ke3 {[%emt 0:00:59]} h5 {[%emt 0:01:15]} 39. Rf1+ {[%emt 0:02:31]} Ke6 {[%emt 0:00:12]} 40. Ra1 {[%emt 0:00:00]} Rb2 {[%emt 0:00:00]} 41. Bc1 {[%emt 0:04:08]} Rb3 {[%emt 0:04:17]} 42. Kd2 {[%emt 0:00:57]} Kf5 {[%emt 0:01:10]} 43. Kc2 {[%emt 0:01:45]} Kg4 {[%emt 0:01:19]} 44. e6 {[%emt 0:01:55]} Kf5 {[%emt 0:02:06]} 45. Rb1 {[%emt 0:00:19]} Rxb1 {[%emt 0:00:12]} 46. Kxb1 {[%emt 0:00:06]} Kxe6 {[%emt 0:00:01]} 47. Ka2 {[%emt 0:00:04]} Bd6 {[%emt 0:00:17]} 48. Bg5 {[%emt 0:06:50]} Kf5 {[%emt 0:01:24]} 49. Bd8 {[%emt 0:07:01]} Ke4 {[%emt 0:00:14]} 50. Bb6 {[%emt 0:06:05]} Kd3 {[%emt 0:01:04]} 51. Ba5 {[%emt 0:02:05]} g6 {[%emt 0:00:15]} 52. Kb1 {[%emt 0:04:55]} Bxg3 {[%emt 0:00:12]} 53. Bb4 {[%emt 0:00:31]} Bxh4 {[%emt 0:00:11]} 54. Ka2 {[%emt 0:00:28]} Be1 {[%emt 0:00:06]} 0-1

[Event "EYCC Girls-U12 2019"]
[Site "Bratislava"]
[Date "2019.08.09"]
[Round "8.8"]
[White "Gadasi, Noam"]
[Black "Van, Foreest Machteld"]
[Result "0-1"]
[ECO "E17"]
[WhiteElo "1585"]
[BlackElo "2186"]
[Annotator "NA"]
[PlyCount "142"]
[EventDate "2019.08.02"]
[EventType "swiss"]
[EventCountry "SVK"]
[SourceTitle "playchess.com"]
[Source "ChessBase"]
[SourceQuality "1"]
[TimeControl "40/5400+30:1800+30"]

1. d4 {[%emt 0:00:00]} Nf6 {[%emt 0:00:00]} 2. c4 {[%emt 0:00:00]} e6 {[%emt 0:00:03]} 3. Nf3 {[%emt 0:00:13]} b6 {[%emt 0:00:28]} 4. g3 {[%emt 0:00:29]} Bb7 {[%emt 0:00:06]} 5. Bg2 {[%emt 0:00:29]} Be7 {[%emt 0:17:04]} 6. O-O {[%emt 0:00:23]} O-O {[%emt 0:00:04]} 7. Re1 {[%emt 0:02:19]} Na6 {[%emt 0:02:46]} 8. Nc3 {[%emt 0:01:34]} Ne4 {[%emt 0:00:01]} 9. Bf4 {[%emt 0:02:11]} Bf6 {[%emt 0:08:30]} 10. Qc2 {[%emt 0:08:19]} d5 {[%emt 0:08:10]} 11. cxd5 {[%emt 0:06:02]} exd5 {[%emt 0:01:49]} 12. Be5 {[%emt 0:16:06]} Nb4 {[%emt 0:17:35]} 13. Qb3 {[%emt 0:03:16]} Nxc3 {[%emt 0:01:25]} 14. Qxc3 {[%emt 0:03:50]} Nc6 {[%emt 0:00:43]} 15. Rac1 {[%emt 0:02:42]} Be7 {[%emt 0:04:49]} 16. a3 {[%emt 0:02:15]} Nxe5 {[%emt 0:01:07]} 17. Nxe5 {[%emt 0:02:57]} c5 {[%emt 0:00:43]} 18. Red1 {[%emt 0:06:34]} c4 {[%emt 0:07:17]} 19. Nxc4 {[%emt 0:03:35]} Rc8 {[%emt 0:07:58]} 20. Qd2 {[%emt 0:01:19]} Bf6 {[%emt 0:01:25]} 21. Ne3 {[%emt 0:02:03]} Qd7 {[%emt 0:00:24]} 22. Qd3 {[%emt 0:04:15]} Bc6 {[%emt 0:06:05]} 23. Qf5 {[%emt 0:03:53]} Qxf5 {[%emt 0:00:08]} 24. Nxf5 {[%emt 0:00:04]} Ba4 {[%emt 0:00:54]} 25. Rf1 {[%emt 0:06:59]} g6 {[%emt 0:00:53]} 26. Ne3 {[%emt 0:08:15]} Bxd4 {[%emt 0:01:07]} 27. Nxd5 {[%emt 0:00:33]} Rxc1 {[%emt 0:03:01]} 28. Rxc1 {[%emt 0:00:02]} Bxb2 {[%emt 0:02:29]} 29. Rc7 {[%emt 0:00:31]} Bxa3 {[%emt 0:00:54]} 30. Rxa7 {[%emt 0:02:05]} b5 {[%emt 0:00:01]} 31. Nc3 {[%emt 0:01:09]} Bc5 {[%emt 0:00:57]} 32. Ra6 {[%emt 0:00:43]} Bb3 {[%emt 0:01:24]} 33. Rc6 {[%emt 0:02:57]} Bb4 {[%emt 0:04:56]} 34. Nxb5 {[%emt 0:02:25]} Ba4 {[%emt 0:00:17]} 35. Rb6 {[%emt 0:00:24]} Rd8 {[%emt 0:01:07]} 36. Nc7 {[%emt 0:04:25]} Ba5 {[%emt 0:00:33]} 37. Ra6 {[%emt 0:00:26]} Rd1+ {[%emt 0:00:03]} 38. Bf1 {[%emt 0:00:09]} Bd7 {[%emt 0:00:04]} 39. Ra8+ {[%emt 0:03:07]} Kg7 {[%emt 0:00:07]} 40. Ne8+ {[%emt 0:00:00]} Kh6 {[%emt 0:00:00]} 41. g4 {[%emt 0:13:41]} Bc3 {[%emt 0:11:21]} 42. f3 {[%emt 0:06:40]} Be5 {[%emt 0:09:32]} 43. h3 {[%emt 0:00:28]} f6 {[%emt 0:01:10]} 44. h4 {[%emt 0:05:58]} Bb5 {[%emt 0:10:22]} 45. Kg2 {[%emt 0:01:59]} g5 {[%emt 0:01:18]} 46. h5 {[%emt 0:00:33]} Rd7 {[%emt 0:00:31]} 47. Ra5 {[%emt 0:03:17]} Rb7 {[%emt 0:00:20]} 48. f4 {[%emt 0:01:18]} gxf4 {[%emt 0:00:32]} 49. g5+ {[%emt 0:01:05]} Kxg5 {[%emt 0:00:14]} 50. Nd6 {[%emt 0:00:32]} Bxd6 {[%emt 0:00:31]} 51. e4 {[%emt 0:00:21]} fxe3 {[%emt 0:01:07]} 52. Rxb5+ {[%emt 0:00:13]} Rxb5 {[%emt 0:00:02]} 53. Bxb5 Kxh5 {[%emt 0:00:57]} 54. Bd3 {[%emt 0:00:36]} Bc5 {[%emt 0:01:01]} 55. Kf3 {[%emt 0:00:09]} Kh6 {[%emt 0:00:19]} 56. Kg4 {[%emt 0:00:38]} Kg7 {[%emt 0:00:14]} 57. Be2 {[%emt 0:00:48]} h6 {[%emt 0:00:28]} 58. Bd3 {[%emt 0:00:08]} Kf7 {[%emt 0:00:14]} 59. Kh5 {[%emt 0:00:34]} f5 {[%emt 0:01:03]} 60. Kxh6 {[%emt 0:00:31]} Be7 {[%emt 0:00:02]} 61. Bc4+ {[%emt 0:00:22]} Kf6 {[%emt 0:00:07]} 62. Kh5 {[%emt 0:00:25]} Ke5 {[%emt 0:00:02]} 63. Be2 {[%emt 0:01:17]} Ke4 {[%emt 0:00:09]} 64. Ba6 {[%emt 0:00:57]} Bd8 {[%emt 0:00:47]} 65. Be2 {[%emt 0:00:17]} Be7 {[%emt 0:00:36]} 66. Ba6 {[%emt 0:00:04]} Kf3 {[%emt 0:00:18]} 67. Kg6 {[%emt 0:00:23]} f4 {[%emt 0:00:11]} 68. Kf5 {[%emt 0:00:31]} Bd6 {[%emt 0:00:03]} 69. Bb5 {[%emt 0:00:58]} e2 {[%emt 0:00:06]} 70. Bxe2+ {[%emt 0:00:20]} Kxe2 {[%emt 0:00:02]} 71. Kg4 {[%emt 0:00:34]} f3 {[%emt 0:00:05]} 0-1

[Event "EYCC Girls-U12 2019"]
[Site "Bratislava"]
[Date "2019.08.09"]
[Round "8.9"]
[White "Sala, Giulia"]
[Black "Mikheeva, Galina"]
[Result "0-1"]
[ECO "C50"]
[WhiteElo "1623"]
[BlackElo "1952"]
[Annotator "NA"]
[PlyCount "52"]
[EventDate "2019.08.02"]
[EventType "swiss"]
[EventCountry "SVK"]
[SourceTitle "playchess.com"]
[Source "ChessBase"]
[SourceQuality "1"]
[TimeControl "40/5400+30:1800+30"]

1. e4 {[%emt 0:00:00]} e5 {[%emt 0:00:00]} 2. Nf3 {[%emt 0:00:00]} Nc6 {[%emt 0:00:00]} 3. Bc4 {[%emt 0:00:02]} Bc5 {[%emt 0:00:00]} 4. O-O {[%emt 0:00:21]} Nf6 {[%emt 0:00:00]} 5. d3 {[%emt 0:00:30]} O-O {[%emt 0:00:02]} 6. Nbd2 {[%emt 0:00:24]} d6 {[%emt 0:02:23]} 7. c3 {[%emt 0:00:35]} Be6 {[%emt 0:03:46]} 8. Bb3 {[%emt 0:01:38]} d5 {[%emt 0:07:00]} 9. exd5 {[%emt 0:02:32]} Bxd5 {[%emt 0:00:24]} 10. h3 {[%emt 0:05:19]} Re8 {[%emt 0:19:22]} 11. Re1 {[%emt 0:07:04]} h6 {[%emt 0:01:28]} 12. Qc2 {[%emt 0:11:37]} Bb6 {[%emt 0:10:39]} 13. Ba4 {[%emt 0:18:36]} Qd6 {[%emt 0:05:42]} 14. b4 {[%emt 0:04:11]} Bxf3 {[%emt 0:03:24]} 15. Nxf3 {[%emt 0:00:28]} Rad8 {[%emt 0:02:58]} 16. Rd1 {[%emt 0:10:20]} e4 {[%emt 0:11:08]} 17. Ne1 {[%emt 0:10:00]} exd3 {[%emt 0:00:49]} 18. Nxd3 {[%emt 0:00:54]} Ne4 {[%emt 0:02:10]} 19. Bb2 {[%emt 0:03:52]} Qf6 {[%emt 0:12:22]} 20. c4 {[%emt 0:07:51]} Bd4 {[%emt 0:00:38]} 21. Bxd4 {[%emt 0:02:09]} Nxd4 {[%emt 0:00:44]} 22. Qb2 {[%emt 0:00:34]} c6 {[%emt 0:00:46]} 23. b5 {[%emt 0:04:22]} Nc3 {[%emt 0:00:39]} 24. Qa3 {[%emt 0:00:53]} Nxd1 {[%emt 0:01:05]} 25. Rxd1 {[%emt 0:00:02]} Ne2+ {[%emt 0:00:48]} 26. Kf1 {[%emt 0:01:42]} Qc3 {[%emt 0:00:35]} 0-1